fUST/lending_fUST_20250505
["ID","MTS","AMOUNT","RATE_DAILY","PERIOD"]
[359910818,1746414640809,-7917.90733423,0.0003588,3]
[359910819,1746414640819,-7917.90733423,0.0003588,3]
[359910820,1746414640828,-160.0,0.00035889,2]
[359910821,1746414640838,-19857.91095222,0.0003589,2]
[359910822,1746414640847,-19561.76746439,0.0003589,3]
[359910823,1746414640857,-400.0,0.0003589,14]
[359910824,1746414640866,-400.0,0.0003589,14]
[359910825,1746414640876,-366.3,0.0003589,14]
[359910826,1746414640885,-400.0,0.0003589,14]
[359910827,1746414640894,-400.0,0.0003589,14]
[359910828,1746414640904,-400.0,0.0003589,14]
[359910829,1746414640915,-400.0,0.0003589,14]
[359910830,1746414640925,-415.63924941,0.0003589,14]
[359910832,1746414640937,-400.0,0.0003589,14]
[359910833,1746414640947,-376.84,0.0003589,14]
[359910834,1746414640956,-400.0,0.0003589,14]
[359910835,1746414640967,-400.0,0.0003589,14]
[359910836,1746414640976,-400.0,0.0003589,14]
[359910837,1746414640985,-260.42734668,0.0003589,14]
[359910838,1746414640995,-470.69,0.0003589,14]
[359910839,1746414641004,-400.0,0.0003589,14]
[359910840,1746414641014,-400.0,0.0003589,14]
[359910841,1746414641023,-400.0,0.0003589,14]
[359910842,1746414641033,-374.56915559,0.0003589,14]
[359910843,1746414641045,-400.0,0.0003589,14]
[359910844,1746414641055,-167.48,0.0003589,14]
[359910845,1746414641064,-400.0,0.0003589,14]
[359910846,1746414641075,-400.0,0.0003589,14]
[359910847,1746414641085,-400.0,0.0003589,14]
[359910848,1746414641094,-468.56,0.0003589,14]
[359910849,1746414641104,-459.58,0.0003589,14]
[359910850,1746414641115,-170.56,0.0003589,14]
[359910851,1746414641125,-419.56,0.0003589,14]
[359910852,1746414641135,-400.0,0.0003589,14]
[359910853,1746414641144,-404.54151241,0.0003589,14]
[359910854,1746414641153,-481.54,0.0003589,14]
[359910855,1746414641163,-438.00800792,0.0003589,14]
[359910856,1746414641172,-400.0,0.0003589,14]
[359910857,1746414641182,-400.0,0.0003589,14]
[359910858,1746414641192,-400.0,0.0003589,14]
[359910859,1746414641201,-400.0,0.0003589,14]
[359910860,1746414641211,-400.0,0.0003589,14]
[359910861,1746414641222,-400.0,0.0003589,14]
[359910862,1746414641231,-400.0,0.0003589,14]
[359910863,1746414641241,-400.0,0.0003589,14]
[359910864,1746414641250,-400.0,0.0003589,14]
[359910865,1746414641260,-400.0,0.0003589,14]
[359910866,1746414641269,-400.0,0.0003589,14]
[359910867,1746414641278,-400.0,0.0003589,14]
[359910868,1746414641287,-400.0,0.0003589,14]
[359910869,1746414641297,-400.0,0.0003589,14]
[359910870,1746414641306,-419.86,0.0003589,14]
[359910871,1746414641315,-400.0,0.0003589,14]
[359910872,1746414641324,-400.0,0.0003589,14]
[359910873,1746414641333,-400.0,0.0003589,14]
[359910874,1746414641342,-400.0,0.0003589,14]
[359910875,1746414641351,-400.0,0.0003589,14]
[359910876,1746414641361,-400.0,0.0003589,14]
[359910877,1746414641370,-762.1,0.0003589,14]
[359910878,1746414641379,-400.0,0.0003589,14]
[359910879,1746414641388,-2178.69,0.0003589,14]
[359910880,1746414641398,-400.0,0.0003589,14]
[359910881,1746414641406,-400.0,0.0003589,14]
[359910882,1746414641415,-400.0,0.0003589,14]
[359910883,1746414641425,-400.0,0.0003589,14]
[359910884,1746414641434,-400.0,0.0003589,14]
[359910885,1746414641443,-400.0,0.0003589,14]
[359910886,1746414641452,-400.0,0.0003589,14]
[359910887,1746414641462,-400.0,0.0003589,14]
[359910888,1746414641471,-400.0,0.0003589,14]
[359910889,1746414641480,-400.0,0.0003589,14]
[359910890,1746414641490,-640.14,0.0003589,14]
[359910891,1746414641500,-400.0,0.0003589,14]
[359910892,1746414641509,-400.0,0.0003589,14]
[359910893,1746414641518,-515.76,0.0003589,14]
[359910894,1746414641528,-400.0,0.0003589,14]
[359910895,1746414641537,-403.1,0.0003589,14]
[359910896,1746414641547,-400.0,0.0003589,14]
[359910897,1746414641556,-309.5035073,0.0003589,14]
[359910898,1746414641565,-400.0,0.0003589,14]
[359910899,1746414641574,-497.99,0.0003589,2]
[359910900,1746414641584,-400.0,0.0003589,14]
[359910901,1746414641593,-466.82,0.0003589,14]
[359910902,1746414641603,-626.01,0.0003589,14]
[359910903,1746414641612,-400.0,0.0003589,14]
[359910904,1746414641621,-400.0,0.0003589,14]
[359910905,1746414641631,-400.0,0.0003589,14]
[359910906,1746414641641,-400.0,0.0003589,14]
[359910907,1746414641650,-400.0,0.0003589,14]
[359910908,1746414641659,-400.0,0.0003589,14]
[359910909,1746414641669,-400.0,0.0003589,14]
[359910910,1746414641678,-745.81,0.0003589,14]
[359910911,1746414641687,-400.0,0.0003589,14]
[359910912,1746414641696,-400.0,0.0003589,14]
[359910913,1746414641705,-400.0,0.0003589,14]
[359910914,1746414641715,-400.0,0.0003589,14]
[359910915,1746414641724,-400.0,0.0003589,14]
[359910916,1746414641733,-400.0,0.0003589,14]
[359910917,1746414641742,-400.0,0.0003589,14]
[359910918,1746414641751,-400.0,0.0003589,14]
[359910919,1746414641761,-400.0,0.0003589,14]
[359910920,1746414641771,-400.0,0.0003589,14]
[359910921,1746414641780,-210.04600938,0.000359,33]
[359910922,1746414641790,-230.30735245,0.00035917,2]
[359910923,1746414641799,-7917.90733423,0.00036163,3]
[359910924,1746414641808,-405.08602763,0.00036164,14]
[359910925,1746414641818,-400.0,0.00036164,14]
[359910926,1746414641827,-400.0,0.00036164,14]
[359910927,1746414641837,-417.52610965,0.00036164,14]
[359910928,1746414641847,-400.0,0.00036164,14]
[359910929,1746414641856,-400.0,0.00036164,14]
[359910930,1746414641866,-400.0,0.00036164,14]
[359910931,1746414641875,-473.82,0.00036164,14]
[359910932,1746414641884,-223.14,0.00036164,14]
[359910933,1746414641893,-400.0,0.00036164,14]
[359910934,1746414641903,-400.0,0.00036164,14]
[359910935,1746414641912,-400.0,0.00036164,14]
[359910936,1746414641921,-469.0,0.00036164,14]
[359910937,1746414641931,-400.0,0.00036164,14]
[359910938,1746414641940,-468.56,0.00036164,14]
[359910939,1746414641949,-208.6,0.00036164,14]
[359910940,1746414641959,-400.0,0.00036164,14]
[359910941,1746414641969,-400.0,0.00036164,14]
[359910942,1746414641979,-400.0,0.00036164,14]
[359910943,1746414641989,-400.0,0.00036164,14]
[359910944,1746414641998,-400.0,0.00036164,14]
[359910945,1746414642008,-400.0,0.00036164,14]
[359910946,1746414642017,-400.0,0.00036164,14]
[359910947,1746414642026,-400.0,0.00036164,14]
[359910948,1746414642039,-400.0,0.00036164,14]
[359910949,1746414642049,-371.07,0.00036164,14]
[359910950,1746414642058,-400.0,0.00036164,14]
[359910951,1746414642069,-400.0,0.00036164,14]
[359910952,1746414642079,-400.0,0.00036164,14]
[359910953,1746414642088,-400.0,0.00036164,14]
[359910954,1746414642098,-400.0,0.00036164,14]
[359910955,1746414642108,-400.0,0.00036164,14]
[359910956,1746414642119,-762.1,0.00036164,14]
[359910957,1746414642129,-358.73,0.00036164,14]
[359910958,1746414642138,-2178.69,0.00036164,14]
[359910959,1746414642148,-400.0,0.00036164,14]
[359910960,1746414642159,-362.86,0.00036164,14]
[359910961,1746414642168,-318.74,0.00036164,14]
[359910962,1746414642177,-400.0,0.00036164,14]
[359910963,1746414642187,-400.0,0.00036164,14]
[359910964,1746414642197,-400.0,0.00036164,14]
[359910965,1746414642206,-400.0,0.00036164,14]
[359910966,1746414642216,-539.59,0.00036164,14]
[359910967,1746414642226,-400.0,0.00036164,14]
[359910968,1746414642236,-640.14,0.00036164,14]
[359910969,1746414642246,-400.0,0.00036164,14]
[359910970,1746414642255,-400.0,0.00036164,14]
[359910971,1746414642265,-400.0,0.00036164,14]
[359910972,1746414642275,-179.93,0.00036164,14]
[359910973,1746414642284,-497.99,0.00036164,2]
[359910974,1746414642294,-400.0,0.00036164,14]
[359910975,1746414642305,-626.01,0.00036164,14]
[359910976,1746414642315,-400.0,0.00036164,14]
[359910977,1746414642324,-301.96,0.00036164,14]
[359910978,1746414642334,-400.0,0.00036164,14]
[359910979,1746414642344,-400.0,0.00036164,14]
[359910980,1746414642353,-400.0,0.00036164,14]
[359910981,1746414642363,-745.81,0.00036164,14]
[359910982,1746414642372,-400.0,0.00036164,14]
[359910983,1746414642381,-400.0,0.00036164,14]
[359910984,1746414642390,-400.0,0.00036164,14]
[359910985,1746414642400,-400.0,0.00036164,14]
[359910986,1746414642409,-400.0,0.00036164,14]
[359910987,1746414642419,-439.74,0.00036164,14]
[359910988,1746414642429,-400.0,0.00036164,14]
[359910989,1746414642471,-400.0,0.00036164,14]
[359910990,1746414642481,-400.0,0.00036164,14]
[359910991,1746414642491,-400.0,0.00036164,14]
[359910992,1746414642501,-383.25735695,0.00036199,2]
[359910993,1746414642510,-2114.19,0.000362,30]
[359910994,1746414642520,-6734.44,0.000362,30]
[359910995,1746414642529,-500.0,0.00036422,2]
[359910996,1746414642539,-400.0,0.00036438,14]
[359910997,1746414642548,-509.62,0.00036438,14]
[359910998,1746414642558,-400.0,0.00036438,14]
[359910999,1746414642567,-400.0,0.00036438,14]
[359911000,1746414642576,-158.6,0.00036438,14]
[359911001,1746414642585,-398.8521831,0.00036438,14]
[359911002,1746414642595,-250.28,0.00036438,14]
[359911003,1746414642606,-250.36,0.00036438,14]
[359911004,1746414642616,-468.56,0.00036438,14]
[359911005,1746414642626,-400.0,0.00036438,14]
[359911006,1746414642635,-400.0,0.00036438,14]
[359911007,1746414642644,-400.0,0.00036438,14]
[359911008,1746414642653,-348.71,0.00036438,14]
[359911009,1746414642663,-400.0,0.00036438,14]
[359911010,1746414642672,-400.0,0.00036438,14]
[359911011,1746414642682,-400.0,0.00036438,14]
[359911012,1746414642691,-400.0,0.00036438,14]
[359911013,1746414642701,-400.0,0.00036438,14]
[359911014,1746414642711,-400.0,0.00036438,14]
[359911015,1746414642721,-400.0,0.00036438,14]
[359911016,1746414642731,-400.0,0.00036438,14]
[359911017,1746414642741,-400.0,0.00036438,14]
[359911018,1746414642750,-400.0,0.00036438,14]
[359911019,1746414642759,-762.1,0.00036438,14]
[359911020,1746414642768,-2178.69,0.00036438,14]
[359911021,1746414642777,-400.0,0.00036438,14]
[359911022,1746414642787,-400.0,0.00036438,14]
[359911023,1746414642796,-400.0,0.00036438,14]
[359911024,1746414642805,-400.0,0.00036438,14]
[359911025,1746414642815,-400.0,0.00036438,14]
[359911026,1746414642824,-400.0,0.00036438,14]
[359911027,1746414642834,-640.14,0.00036438,14]
[359911028,1746414642843,-400.0,0.00036438,14]
[359911029,1746414642852,-400.0,0.00036438,14]
[359911030,1746414642861,-400.0,0.00036438,14]
[359911031,1746414642871,-497.99,0.00036438,2]
[359911032,1746414642880,-400.0,0.00036438,14]
[359911033,1746414642890,-626.01,0.00036438,14]
[359911034,1746414642899,-400.0,0.00036438,14]
[359911035,1746414642908,-400.0,0.00036438,14]
[359911036,1746414642917,-400.0,0.00036438,14]
[359911037,1746414642926,-400.0,0.00036438,14]
[359911038,1746414642935,-745.81,0.00036438,14]
[359911039,1746414642945,-400.0,0.00036438,14]
[359911040,1746414642954,-400.0,0.00036438,14]
[359911041,1746414642963,-400.0,0.00036438,14]
[359911042,1746414642972,-400.0,0.00036438,14]
[359911043,1746414642982,-400.0,0.00036438,14]
[359911044,1746414642992,-400.0,0.00036438,14]
[359911045,1746414643002,-400.0,0.00036438,14]
[359911046,1746414643011,-400.0,0.00036438,14]
[359911047,1746414643021,-400.0,0.00036438,14]
[359911048,1746414643030,-376.35777402,0.00036455,5]
[359911049,1746414643043,-632.11859007,0.00036455,5]
[359911050,1746414643053,-500.0,0.00036478,5]
[359911051,1746414643063,-500.0,0.00036495,5]
[359911052,1746414643072,-504.71365507,0.00036611,5]
[359911053,1746414643082,-11760.89803397,0.00036701,2]
[359911054,1746414643163,-1020.0,0.00036701,2]
[359911055,1746414643177,-27919.37381017,0.00036701,2]
[359911056,1746414643188,-9434.6,0.00036701,2]
[359911058,1746414643200,-427.38381712,0.00036701,2]
[359911060,1746414643212,-38407.185269,0.00036701,2]
[359911061,1746414643224,-5572.98454052,0.00036701,2]
[359911062,1746414643235,-219284.30207803,0.00036701,2]
[359911083,1746414643718,-4146.0,0.00036701,2]
[359911084,1746414643730,-5109.35696132,0.00036701,2]
[359911085,1746414643742,-49907.70299987,0.00036701,2]
[359911086,1746414643752,-7917.90733423,0.00036702,3]
[359911087,1746414643761,-400.0,0.00036712,14]
[359911088,1746414643772,-400.0,0.00036712,14]
[359911089,1746414643781,-468.56,0.00036712,14]
[359911090,1746414643791,-400.0,0.00036712,14]
[359911091,1746414643800,-400.0,0.00036712,14]
[359911092,1746414643811,-298.52,0.00036712,14]
[359911093,1746414643821,-400.0,0.00036712,14]
[359911094,1746414643832,-400.0,0.00036712,14]
[359911095,1746414643841,-400.0,0.00036712,14]
[359911096,1746414643851,-182.66,0.00036712,14]
[359911097,1746414643861,-400.0,0.00036712,14]
[359911098,1746414643871,-400.0,0.00036712,14]
[359911099,1746414643882,-541.52,0.00036712,14]
[359911100,1746414643892,-400.0,0.00036712,14]
[359911101,1746414643904,-400.0,0.00036712,14]
[359911102,1746414643914,-400.0,0.00036712,14]
[359911103,1746414643925,-762.1,0.00036712,14]
[359911104,1746414643936,-2178.69,0.00036712,14]
[359911105,1746414643947,-400.0,0.00036712,14]
[359911106,1746414643957,-400.0,0.00036712,14]
[359911107,1746414643967,-167.04,0.00036712,14]
[359911108,1746414643977,-400.0,0.00036712,14]
[359911109,1746414643988,-400.0,0.00036712,14]
[359911110,1746414643998,-400.0,0.00036712,14]
[359911111,1746414644009,-640.14,0.00036712,14]
[359911112,1746414644019,-472.69,0.00036712,14]
[359911113,1746414644029,-400.0,0.00036712,14]
[359911114,1746414644044,-400.0,0.00036712,14]
[359911115,1746414644053,-497.99,0.00036712,2]
[359911116,1746414644063,-400.0,0.00036712,14]
[359911117,1746414644073,-626.01,0.00036712,14]
[359911118,1746414644083,-400.0,0.00036712,14]
[359911119,1746414644093,-400.0,0.00036712,14]
[359911120,1746414644103,-400.0,0.00036712,14]
[359911121,1746414644113,-400.0,0.00036712,14]
[359911122,1746414644123,-745.81,0.00036712,14]
[359911123,1746414644133,-400.0,0.00036712,14]
[359911124,1746414644143,-274.68,0.00036712,14]
[359911125,1746414644157,-400.0,0.00036712,14]
[359911126,1746414644167,-400.0,0.00036712,14]
[359911127,1746414644177,-400.0,0.00036712,14]
[359911128,1746414644186,-400.0,0.00036712,14]
[359911129,1746414644196,-400.0,0.00036712,14]
[359911130,1746414644206,-345.17660427,0.00036712,14]
[359911131,1746414644215,-533.84421442,0.00036712,14]
[359911132,1746414644224,-500.0,0.00036855,2]
[359911133,1746414644234,-500.0,0.00036855,5]
[359911134,1746414644244,-383.25735695,0.00036883,2]
[359911135,1746414644254,-400.0,0.00036986,14]
[359911136,1746414644264,-400.0,0.00036986,14]
[359911137,1746414644274,-468.56,0.00036986,14]
[359911138,1746414644284,-400.0,0.00036986,14]
[359911139,1746414644294,-400.0,0.00036986,14]
[359911140,1746414644304,-400.0,0.00036986,14]
[359911141,1746414644313,-400.0,0.00036986,14]
[359911142,1746414644323,-400.0,0.00036986,14]
[359911143,1746414644333,-400.0,0.00036986,14]
[359911144,1746414644342,-400.0,0.00036986,14]
[359911145,1746414644352,-400.0,0.00036986,14]
[359911146,1746414644361,-400.0,0.00036986,14]
[359911147,1746414644371,-400.0,0.00036986,14]
[359911148,1746414644380,-762.1,0.00036986,14]
[359911149,1746414644390,-2178.69,0.00036986,14]
[359911150,1746414644400,-400.0,0.00036986,14]
[359911151,1746414644410,-300.78361148,0.00036986,14]
[359911152,1746414644420,-400.0,0.00036986,14]
[359911153,1746414644431,-400.0,0.00036986,14]
[359911154,1746414644440,-400.0,0.00036986,14]
[359911155,1746414644450,-640.14,0.00036986,14]
[359911156,1746414644460,-425.5,0.00036986,14]
[359911157,1746414644470,-400.0,0.00036986,14]
[359911158,1746414644479,-497.99,0.00036986,2]
[359911159,1746414644489,-400.0,0.00036986,14]
[359911160,1746414644499,-626.01,0.00036986,14]
[359911161,1746414644508,-400.0,0.00036986,14]
[359911162,1746414644518,-400.0,0.00036986,14]
[359911163,1746414644527,-400.0,0.00036986,14]
[359911164,1746414644537,-400.0,0.00036986,14]
[359911165,1746414644547,-745.81,0.00036986,14]
[359911166,1746414644557,-400.0,0.00036986,14]
[359911167,1746414644566,-400.0,0.00036986,14]
[359911168,1746414644576,-400.0,0.00036986,14]
[359911169,1746414644586,-400.0,0.00036986,14]
[359911170,1746414644596,-400.0,0.00036986,14]
[359911171,1746414644605,-400.0,0.00036986,14]
[359911172,1746414644615,-400.0,0.0003726,14]
[359911173,1746414644625,-400.0,0.0003726,14]
[359911174,1746414644635,-468.56,0.0003726,14]
[359911175,1746414644644,-400.0,0.0003726,14]
[359911176,1746414644654,-400.0,0.0003726,14]
[359911177,1746414644664,-400.0,0.0003726,14]
[359911178,1746414644673,-400.0,0.0003726,14]
[359911179,1746414644682,-400.0,0.0003726,14]
[359911180,1746414644692,-400.0,0.0003726,14]
[359911181,1746414644702,-400.0,0.0003726,14]
[359911182,1746414644711,-400.0,0.0003726,14]
[359911183,1746414644721,-400.0,0.0003726,14]
[359911184,1746414644731,-400.0,0.0003726,14]
[359911185,1746414644740,-762.1,0.0003726,14]
[359911186,1746414644751,-2178.69,0.0003726,14]
[359911187,1746414644760,-400.0,0.0003726,14]
[359911188,1746414644770,-400.0,0.0003726,14]
[359911189,1746414644780,-400.0,0.0003726,14]
[359911190,1746414644790,-400.0,0.0003726,14]
[359911191,1746414644799,-640.14,0.0003726,14]
[359911192,1746414644809,-400.0,0.0003726,14]
[359911193,1746414644819,-497.99,0.0003726,2]
[359911194,1746414644829,-400.0,0.0003726,14]
[359911195,1746414644838,-626.01,0.0003726,14]
[359911196,1746414644848,-400.0,0.0003726,14]
[359911197,1746414644857,-400.0,0.0003726,14]
[359911198,1746414644866,-400.0,0.0003726,14]
[359911199,1746414644877,-400.0,0.0003726,14]
[359911200,1746414644887,-745.81,0.0003726,14]
[359911201,1746414644898,-400.0,0.0003726,14]
[359911202,1746414644908,-400.0,0.0003726,14]
[359911203,1746414644918,-400.0,0.0003726,14]
[359911204,1746414644928,-400.0,0.0003726,14]
[359911205,1746414644940,-400.0,0.0003726,14]
[359911206,1746414644949,-400.0,0.0003726,14]
[359911207,1746414644959,-500.0,0.00037518,2]
[359911208,1746414644968,-7917.90733423,0.00037524,3]
[359911209,1746414644977,-400.0,0.00037534,14]
[359911210,1746414644988,-372.54,0.00037534,14]
[359911211,1746414644997,-468.56,0.00037534,14]
[359911212,1746414645006,-400.0,0.00037534,14]
[359911213,1746414645016,-166.88,0.00037534,14]
[359911214,1746414645026,-400.0,0.00037534,14]
[359911215,1746414645038,-400.0,0.00037534,14]
[359911216,1746414645047,-400.0,0.00037534,14]
[359911217,1746414645057,-400.0,0.00037534,14]
[359911218,1746414645067,-400.0,0.00037534,14]
[359911219,1746414645076,-400.0,0.00037534,14]
[359911220,1746414645087,-400.0,0.00037534,14]
[359911221,1746414645096,-400.0,0.00037534,14]
[359911222,1746414645105,-762.1,0.00037534,14]
[359911223,1746414645116,-2178.69,0.00037534,14]
[359911224,1746414645126,-192.35,0.00037534,14]
[359911225,1746414645136,-400.0,0.00037534,14]
[359911226,1746414645146,-400.0,0.00037534,14]
[359911227,1746414645155,-442.2626275,0.00037534,14]
[359911228,1746414645164,-640.14,0.00037534,14]
[359911229,1746414645173,-400.0,0.00037534,14]
[359911230,1746414645182,-497.99,0.00037534,2]
[359911231,1746414645192,-400.0,0.00037534,14]
[359911232,1746414645201,-626.01,0.00037534,14]
[359911233,1746414645211,-400.0,0.00037534,14]
[359911234,1746414645220,-400.0,0.00037534,14]
[359911235,1746414645230,-400.0,0.00037534,14]
[359911236,1746414645240,-400.0,0.00037534,14]
[359911237,1746414645249,-745.81,0.00037534,14]
[359911238,1746414645259,-400.0,0.00037534,14]
[359911239,1746414645269,-400.0,0.00037534,14]
[359911240,1746414645278,-236.52142304,0.00037534,14]
[359911241,1746414645288,-400.0,0.00037534,14]
[359911242,1746414645297,-400.0,0.00037534,14]
[359911243,1746414645307,-400.0,0.00037534,14]
[359911244,1746414645316,-383.25735695,0.00037566,2]
[359911245,1746414645326,-400.0,0.00037808,14]
[359911246,1746414645336,-468.56,0.00037808,14]
[359911247,1746414645345,-400.0,0.00037808,14]
[359911248,1746414645355,-400.0,0.00037808,14]
[359911249,1746414645365,-494.38,0.00037808,14]
[359911250,1746414645374,-400.0,0.00037808,14]
[359911251,1746414645383,-479.63,0.00037808,14]
[359911252,1746414645393,-400.0,0.00037808,14]
[359911253,1746414645402,-400.0,0.00037808,14]
[359911254,1746414645412,-400.0,0.00037808,14]
[359911255,1746414645421,-256.24668751,0.00037808,14]
[359911256,1746414645431,-762.1,0.00037808,14]
[359911257,1746414645440,-2178.69,0.00037808,14]
[359911258,1746414645450,-400.0,0.00037808,14]
[359911259,1746414645459,-400.0,0.00037808,14]
[359911260,1746414645468,-640.14,0.00037808,14]
[359911261,1746414645478,-400.0,0.00037808,14]
[359911262,1746414645488,-497.99,0.00037808,2]
[359911263,1746414645498,-400.0,0.00037808,14]
[359911264,1746414645507,-626.01,0.00037808,14]
[359911265,1746414645517,-400.0,0.00037808,14]
[359911266,1746414645526,-400.0,0.00037808,14]
[359911267,1746414645535,-400.0,0.00037808,14]
[359911268,1746414645545,-400.0,0.00037808,14]
[359911269,1746414645554,-745.81,0.00037808,14]
[359911270,1746414645564,-400.0,0.00037808,14]
[359911271,1746414645574,-400.0,0.00037808,14]
[359911272,1746414645584,-400.0,0.00037808,14]
[359911273,1746414645594,-392.54,0.00037808,14]
[359911274,1746414645604,-400.0,0.00037808,14]
[359911275,1746414645614,-182.23035355,0.00037869,2]
[359911276,1746414645625,-1516.1,0.000379,7]
[359911277,1746414645637,-150.0,0.00038,15]
[359911278,1746414645647,-465.27667878,0.00038009,2]
[359911279,1746414645657,-501.89045152,0.00038069,5]
[359911280,1746414645670,-500.0,0.00038069,5]
[359911281,1746414645680,-500.0,0.00038069,5]
[359911282,1746414645691,-472.77346992,0.00038069,5]
[359911283,1746414645700,-500.0,0.00038069,5]
[359911284,1746414645710,-360.0,0.00038082,14]
[359911285,1746414645719,-468.56,0.00038082,14]
[359911286,1746414645729,-400.0,0.00038082,14]
[359911287,1746414645738,-400.0,0.00038082,14]
[359911288,1746414645748,-400.0,0.00038082,14]
[359911289,1746414645757,-400.0,0.00038082,14]
[359911290,1746414645769,-400.0,0.00038082,14]
[359911291,1746414645780,-400.0,0.00038082,14]
[359911292,1746414645791,-762.1,0.00038082,14]
[359911293,1746414645802,-2178.69,0.00038082,14]
[359911294,1746414645813,-400.0,0.00038082,14]
[359911295,1746414645823,-400.0,0.00038082,14]
[359911296,1746414645832,-640.14,0.00038082,14]
[359911297,1746414645842,-282.48,0.00038082,14]
[359911298,1746414645853,-497.99,0.00038082,2]
[359911299,1746414645864,-400.0,0.00038082,14]
[359911300,1746414645874,-626.01,0.00038082,14]
[359911301,1746414645885,-400.0,0.00038082,14]
[359911302,1746414645895,-400.0,0.00038082,14]
[359911303,1746414645906,-400.0,0.00038082,14]
[359911304,1746414645917,-400.0,0.00038082,14]
[359911305,1746414645928,-745.81,0.00038082,14]
[359911306,1746414645939,-316.25546986,0.00038082,14]
[359911307,1746414645950,-400.0,0.00038082,14]
[359911308,1746414645960,-400.0,0.00038082,14]
[359911309,1746414645972,-341.79,0.00038082,14]
[359911310,1746414645983,-252.82254587,0.00038111,5]
[359911311,1746414645993,-500.0,0.00038124,5]
[359911312,1746414646005,-383.25735695,0.00038249,2]
[359911315,1746414646017,-7917.90733423,0.00038346,3]
[359911318,1746414646128,-468.56,0.00038356,14]
[359911319,1746414646138,-400.0,0.00038356,14]
[359911322,1746414646147,-400.0,0.00038356,14]
[359911323,1746414646157,-400.0,0.00038356,14]
[359911324,1746414646165,-400.0,0.00038356,14]
[359911325,1746414646174,-386.56567631,0.00038356,14]
[359911326,1746414646183,-400.0,0.00038356,14]
[359911327,1746414646192,-762.1,0.00038356,14]
[359911328,1746414646202,-2178.69,0.00038356,14]
[359911329,1746414646212,-400.0,0.00038356,14]
[359911330,1746414646221,-400.0,0.00038356,14]
[359911332,1746414646230,-640.14,0.00038356,14]
[359911333,1746414646240,-497.99,0.00038356,2]
[359911334,1746414646249,-400.0,0.00038356,14]
[359911335,1746414646258,-626.01,0.00038356,14]
[359911336,1746414646267,-400.0,0.00038356,14]
[359911337,1746414646276,-400.0,0.00038356,14]
[359911338,1746414646285,-400.0,0.00038356,14]
[359911339,1746414646295,-400.0,0.00038356,14]
[359911340,1746414646304,-745.81,0.00038356,14]
[359911341,1746414646313,-400.0,0.00038356,14]
[359911342,1746414646322,-400.0,0.00038356,14]
[359911344,1746414646331,-860.0360698,0.00038394,4]
[359911346,1746414646340,-2114.19,0.000384,30]
[359911348,1746414646349,-6734.44,0.000384,30]
[359911349,1746414646358,-210.04600936,0.000384,38]
[359911350,1746414646367,-200.89272179,0.000385,30]